bitfinex-derivatives/quotes_ETHF0:USTF0_20250606
["timestamp","ask_amount","ask_price","bid_price","bid_amount"]
[1749221956476,2.79564,2520.4,2520.3,0.7989225]
[1749221956683,2.0027,2520.4,2520.3,0.7989225]
[1749221957278,7.79563,2520.4,2520.3,0.0059525]
[1749221957484,7.79563,2520.4,2520.3,0.7989225]
[1749221957986,7.0027,2520.4,2520.3,0.7989225]
[1749221958187,2.0027,2520.4,2520.3,0.7989225]
[1749221958384,0.6769,2520.7,2520.3,0.7989225]
[1749221958385,1.46974,2520.7,2520.6,0.79287]
[1749221958584,1.46974,2520.7,2520.5,0.79287]
[1749221958585,0.79291,2520.6,2520.5,0.79287]
[1749221958890,0.79291,2520.6,2520.3,0.7989225]
[1749221958891,0.79294,2520.4,2520.3,0.7988925]
[1749221959583,7.87680769,2520.4,2519.7,1.98287]
[1749221959887,0.79315,2519.8,2519.7,0.79312]
[1749221960385,0.79312,2519.9,2519.8,0.79309]
[1749221961186,0.79308,2520.0,2519.9,0.79306]
[1749221961487,2.09585,2520.1,2520.0,0.79306]
[1749221961681,2.98991697,2520.1,2520.0,0.79306]
[1749221961880,7.98991697,2520.1,2520.0,0.79306]
[1749221962382,2.19688697,2520.1,2520.0,0.79306]
[1749221962585,1.3028,2520.1,2520.0,0.79306]
[1749221963285,1.3028,2520.1,2519.9,3.2078]
[1749221963484,1.3028,2520.1,2520.0,0.79306]
[1749221963485,2.09585,2520.1,2520.0,0.79306]
[1749221965082,1.3028,2520.1,2520.0,0.79306]
[1749221966386,3.2137525,2520.8,2520.0,0.79306]
[1749221966682,3.2137525,2520.8,2520.5,0.79287]
[1749221966683,0.7929,2520.6,2520.5,0.79287]
[1749221967279,0.79294,2520.4,2520.3,4.00073]
[1749221967475,0.79294,2520.4,2520.3,0.79293]
[1749221967685,2.13253,2520.5,2520.4,0.79294]
[1749221967886,3.0213451,2520.5,2520.4,0.79294]
[1749221968083,2.13253,2520.5,2520.4,0.79294]
[1749221968286,0.79296,2520.4,2520.3,0.79294]
[1749221969386,2.13252,2520.5,2520.4,0.79294]
[1749221969589,3.02132987,2520.5,2520.4,0.79294]
[1749221970489,2.22840987,2520.5,2520.4,0.79294]
[1749221970888,7.22840987,2520.5,2519.9,5.19049]
[1749221971189,0.79299,2520.3,2520.2,0.79297]
[1749221971379,0.8891822,2520.3,2520.2,0.79297]
[1749221971582,11.0131822,2520.3,2519.9,5.19052]
[1749221971784,5.124,2520.3,2520.2,0.793]
[1749221971984,11.8066333,2520.3,2520.2,0.793]
[1749221972788,11.8066233,2520.3,2520.2,0.793]
[1749221974784,0.79304,2520.2,2520.1,0.793]
[1749221974981,1.68278465,2520.2,2519.9,3.2078]
[1749221975282,1.52219862,2520.1,2520.0,0.79306]
[1749221975682,6.52219862,2520.1,2520.0,0.79306]
[1749221975884,0.79312,2519.9,2519.8,0.79309]
[1749221976090,19.68012,2519.9,2519.8,0.79309]
[1749221976391,24.80412,2519.9,2519.8,0.79309]
[1749221977589,24.011,2519.9,2519.8,0.79309]
[1749221977787,1.42544,2520.1,2520.0,0.79306]
[1749221977989,26.32577154,2520.1,2520.0,0.79306]
[1749221978184,31.32577154,2520.1,2520.0,0.79306]
[1749221979485,26.32577154,2520.1,2520.0,0.79306]
[1749221980087,0.79309,2520.0,2519.9,0.79307]
[1749221980284,1.68242154,2520.0,2519.9,0.79307]
[1749221980888,0.88933154,2520.0,2519.9,0.79307]
[1749221981387,1.68239154,2520.0,2519.9,0.79307]
[1749221981694,0.88933154,2520.0,2519.9,0.79307]
[1749221982596,1.68239154,2520.0,2519.9,0.79307]
[1749221984883,0.88933154,2520.0,2519.9,0.79307]
[1749221985088,0.79298,2520.4,2520.3,0.79294]
[1749221985284,1.68816313,2520.4,2520.3,0.79294]
[1749221986697,0.79301,2520.3,2520.2,0.79297]
[1749221986897,1.68819313,2520.3,2520.2,0.79297]
[1749221989806,0.89518313,2520.3,2520.2,0.79297]
[1749221990299,0.79297,2520.3,2520.2,0.79297]
[1749221990705,1.68815313,2520.3,2520.2,0.79297]
[1749221993301,0.89518313,2520.3,2520.2,0.79297]
[1749221993602,5.19003,2520.6,2520.4,0.79293]
[1749221993603,24.78091,2520.5,2520.4,0.79293]
[1749221993804,20.56496759,2520.5,2520.4,0.40613947]
[1749221994598,25.67696759,2520.5,2520.4,0.40613947]
[1749221997108,25.67496759,2520.5,2520.4,0.40613947]
[1749222000205,26.86433759,2520.5,2520.1,3.2078]
[1749222000414,0.79303,2520.1,2520.0,0.79304]
[1749222000614,1.68908759,2520.1,2520.0,0.79304]
[1749222000910,0.89605759,2520.1,2520.0,0.79304]
[1749222001313,0.89605759,2520.1,2520.0,4.00084]
[1749222001606,5.90593,2520.5,2520.4,0.79293]
[1749222001809,0.79297,2520.4,2520.3,0.79293]
[1749222002116,1.6843933,2520.4,2520.3,0.79293]
[1749222002313,0.89158133,2520.4,2520.3,0.79293]
[1749222002502,1.68451133,2520.4,2520.3,0.79293]
[1749222003510,0.89158133,2520.4,2520.3,0.79293]
[1749222004313,1.68451133,2520.4,2520.3,0.79293]
[1749222004507,0.89158133,2520.4,2520.1,0.6269]
[1749222004714,0.79307,2520.1,2520.0,0.79305]
[1749222005012,0.79307,2520.1,2519.8,0.7931]
[1749222005013,0.79309,2519.9,2519.8,0.7931]
[1749222005213,1.68467133,2519.9,2519.8,0.7931]
[1749222006912,0.89158133,2519.9,2519.8,0.79312]
[1749222007409,0.6564,2520.3,2520.2,0.793]
[1749222007710,1.54836583,2520.3,2519.9,1.3181]
[1749222008009,1.68499583,2520.2,2520.1,0.79301]
[1749222008409,0.89196583,2520.2,2520.1,0.79301]
[1749222009008,19.5152,2520.5,2520.1,1.98258]
[1749222009009,0.6492,2520.5,2520.1,1.98258]
[1749222009215,0.79287,2520.7,2520.6,0.79287]
[1749222009414,0.79289,2520.6,2520.5,0.79289]
[1749222009808,0.7987925,2520.8,2520.7,0.79284]
[1749222010002,0.89759083,2520.8,2520.7,0.79284]
[1749222010514,1.69042083,2520.8,2520.6,3.2078]
[1749222010707,0.79287,2520.6,2520.5,0.6615]
[1749222010907,1.68415589,2520.6,2520.5,0.6615]
[1749222011108,0.7929,2520.5,2520.4,3.8942]
[1749222011312,0.7931,2519.9,2519.7,5.54015534]
[1749222011508,0.79305,2520.1,2519.8,1.44211]
[1749222011708,0.79305,2520.1,2519.9,0.79309]
[1749222011913,0.79305,2520.1,2519.8,2.7412]
[1749222012112,0.79301,2520.2,2519.8,1.9481]
[1749222012312,2.6753,2520.4,2519.8,1.9481]
[1749222012512,0.79309,2519.9,2519.8,0.649]
[1749222012705,7.09564,2520.1,2519.6,0.0059525]
[1749222013013,0.79315,2519.7,2519.6,0.0059525]
[1749222013215,0.89262663,2519.7,2519.6,0.0059525]
[1749222013414,1.68577663,2519.7,2519.6,0.0059525]
[1749222013615,0.89262663,2519.7,2519.6,0.0059525]
[1749222013915,1.68577663,2519.7,2519.6,0.0059525]
[1749222014312,0.89262663,2519.7,2519.6,0.0059525]
[1749222014515,0.7931,2519.9,2519.6,0.7991225]
[1749222014719,0.89237961,2519.8,2519.6,2.0578225]
[1749222015015,0.79315,2519.7,2519.6,1.2646525]
[1749222015215,0.79315,2519.7,2519.6,0.0059525]
[1749222015804,0.79313,2519.8,2519.6,0.0059525]
[1749222016017,24.6554,2520.0,2519.6,0.0059525]
[1749222016208,1.68534739,2519.9,2519.6,0.0059525]
[1749222016408,0.89223739,2519.8,2519.6,1.3567525]
[1749222016616,0.79315,2519.7,2519.6,0.0059525]
[1749222017117,0.79314,2519.8,2519.6,0.0059525]
[1749222017318,0.79314,2519.8,2519.6,0.7991225]
[1749222017516,24.6544,2520.0,2519.6,0.0059525]
[1749222017719,1.68444638,2519.9,2519.8,3.2078]
[1749222017916,0.89135638,2519.9,2519.6,1.3567525]
[1749222018218,0.79315,2519.7,2519.6,0.0059525]
[1749222018420,1.68353968,2519.7,2519.6,0.0059525]
[1749222018617,3.06493968,2519.7,2519.6,0.0059525]
[1749222019016,24.84938968,2519.7,2519.6,0.7991325]
[1749222019211,0.89038968,2519.7,2519.6,0.7991325]
[1749222019420,0.89038968,2519.7,2519.6,0.0059525]
[1749222019618,1.68353968,2519.7,2519.6,0.0059525]
[1749222019812,1.68353968,2519.7,2519.6,0.6636525]
[1749222022825,5.2664,2520.0,2519.6,0.6636525]
[1749222023026,0.79314,2519.8,2519.6,0.6636525]
[1749222023226,23.957,2519.9,2519.6,2.0282525]
[1749222023421,0.79305,2520.1,2519.8,3.2078]
[1749222023626,0.79306,2520.0,2519.9,0.79306]
[1749222023827,0.79314,2519.8,2519.6,1.4568325]
[1749222024128,0.79312,2519.9,2519.8,0.79312]
[1749222024325,0.79312,2519.8,2519.7,0.79314]
[1749222024626,5.1,2520.1,2519.7,0.79313]
[1749222024627,0.79309,2519.9,2519.7,0.79313]
[1749222025328,7.08258,2520.1,2519.6,2.0282525]
[1749222025528,0.7931,2519.9,2519.6,2.0282525]
[1749222025733,0.79306,2520.0,2519.8,0.7931]
[1749222025932,6.4695,2520.1,2519.7,0.79315]
[1749222026227,0.79315,2519.7,2519.6,2.0282525]
[1749222026422,0.79315,2519.7,2519.6,0.6636525]
[1749222026629,0.79314,2519.8,2519.7,0.79315]
[1749222026825,0.79312,2519.9,2519.8,0.79312]
[1749222027027,11.65987,2520.1,2519.7,0.79313]
[1749222027219,0.79312,2519.9,2519.7,0.79313]
[1749222027420,5.788,2520.4,2520.0,1.98265]
[1749222027634,5.727,2520.7,2520.5,0.79288]
[1749222027823,0.79287,2520.6,2520.4,0.79291]
[1749222028026,1.69208708,2520.6,2520.4,0.79291]
[1749222028330,0.79287,2520.6,2520.5,0.6904]
[1749222028526,0.79287,2520.6,2520.5,1.4833]
[1749222028834,0.0059525,2520.8,2520.5,0.6904]
[1749222029020,5.1,2520.7,2520.5,2.0489]
[1749222029222,5.89283,2520.7,2520.5,2.0489]
[1749222029430,5.1,2520.7,2520.5,2.0489]
[1749222029630,0.79282,2520.6,2520.5,2.0489]
[1749222031026,0.0059525,2520.8,2520.7,0.7928]
[1749222031330,0.0059525,2520.8,2520.7,4.0006]
[1749222031634,0.0059525,2520.8,2520.7,3.2078]
[1749222031818,0.0059525,2520.8,2520.5,2.0489]
[1749222031819,0.79283,2520.6,2520.5,0.6904]
[1749222032024,0.0059525,2520.8,2520.4,3.2078]
[1749222032025,0.79286,2520.5,2520.4,3.2078]
[1749222032220,5.1,2520.5,2520.2,0.6565]
[1749222032427,0.79292,2520.3,2520.2,0.6565]
[1749222032936,0.79296,2520.2,2520.1,3.2078]
[1749222033134,0.79295,2520.3,2520.1,4.00078]
[1749222033432,0.79296,2520.2,2520.1,3.2078]
[1749222033926,5.19018,2520.3,2519.7,3.8376]
[1749222034233,0.79308,2519.8,2519.7,3.2078]
[1749222034831,5.89208,2519.8,2519.7,3.2078]
[1749222035532,0.79312,2519.7,2519.2,0.79326]
[1749222035736,2.13442,2519.7,2519.2,0.79326]
[1749222035933,2.13442,2519.7,2519.3,0.79322]
[1749222036130,2.13442,2519.7,2519.2,0.79325]
[1749222036830,2.13442,2519.7,2519.1,5.1152]
[1749222037039,2.13442,2519.7,2519.2,0.79326]
[1749222037637,2.13442,2519.7,2519.3,0.79323]
[1749222037838,2.13442,2519.7,2519.4,0.79321]
[1749222038041,2.13442,2519.7,2519.1,5.1152]
[1749222038335,2.14291,2520.1,2519.5,1.98292]
[1749222038536,6.7915244,2520.0,2519.6,5.1579525]
[1749222038735,0.79305,2519.9,2519.8,0.79307]
[1749222039043,0.79311,2519.7,2519.6,4.5672525]
[1749222039541,5.1,2520.3,2520.0,0.79301]
[1749222039739,0.91624688,2520.2,2519.9,4.00082]
[1749222039944,0.79302,2520.0,2519.9,3.2078]
[1749222040434,0.79302,2520.0,2519.8,2.05126]
[1749222040435,0.79302,2520.0,2519.8,1.2582]
[1749222040642,7.08234,2520.3,2519.8,2.05127]
[1749222040841,0.91656436,2520.2,2519.8,1.2582]
[1749222041132,6.3611,2520.3,2520.0,0.79301]
[1749222041133,0.793,2520.1,2520.0,0.79301]
[1749222041334,25.98007,2520.7,2520.0,1.98255]
[1749222041335,5.1,2520.6,2520.0,1.98255]
[1749222041635,0.79292,2520.3,2520.2,3.2078]
[1749222042941,0.79292,2520.3,2520.2,4.00075]
[1749222043142,0.79292,2520.3,2520.2,3.2078]
[1749222043535,0.79302,2520.0,2519.9,3.2078]
[1749222043741,0.79311,2519.7,2519.6,0.0059525]
[1749222043936,5.89311,2519.7,2519.6,0.0059525]
[1749222045531,6.81091652,2519.7,2519.6,0.0059525]
[1749222045736,8.10111652,2519.7,2519.6,0.0059525]
[1749222045934,1.71091652,2519.7,2519.6,0.0059525]
[1749222046244,5.89311,2519.7,2519.6,0.0059525]
[1749222046644,7.21181,2519.7,2519.6,0.0059525]
[1749222046841,8.13017375,2519.7,2519.6,0.0059525]
[1749222047339,7.33706375,2519.7,2519.0,1.3362]
[1749222047643,0.7933,2519.1,2519.0,0.6709]
[1749222048044,3.2078,2519.9,2519.0,0.6709]
[1749222048244,3.2078,2519.9,2519.4,3.2078]
[1749222048245,24.84641567,2519.8,2519.4,3.2078]
[1749222048547,0.0059525,2519.7,2519.4,3.2078]
[1749222048842,0.0059525,2519.7,2519.5,3.36707]
[1749222049043,0.79314,2519.6,2519.5,3.36707]
[1749222049242,0.79314,2519.6,2519.5,2.5739]
[1749222049643,0.0059525,2519.7,2519.5,3.36705]
[1749222049846,0.7990825,2519.7,2519.5,3.36705]
[1749222050249,0.79314,2519.6,2519.5,2.5739]
[1749222051047,0.79314,2519.6,2519.5,1.2715]
[1749222052850,0.79317,2519.5,2519.4,3.2078]
[1749222053545,0.79317,2519.5,2519.4,4.001]
[1749222053745,0.79317,2519.5,2519.4,3.2078]
[1749222054145,0.79317,2519.5,2519.4,4.001]
[1749222054345,0.79317,2519.5,2519.4,3.2078]
[1749222055248,0.79323,2519.3,2519.2,0.0059525]
[1749222055454,5.88123,2519.3,2519.2,0.0059525]
[1749222057947,8.05879464,2519.3,2519.2,0.0059525]
[1749222058256,0.79341,2518.8,2518.7,0.7934]
[1749222058558,0.79341,2518.8,2518.7,0.6432]
[1749222059452,3.8919,2519.4,2518.7,0.6432]
[1749222059651,0.7933,2519.1,2519.0,4.00112]
[1749222059953,19.6282,2519.5,2519.4,0.79318]
[1749222060159,24.0099525,2519.7,2519.3,3.2078]
[1749222060160,31.7284625,2519.7,2519.3,3.2078]
[1749222060357,0.79324,2519.4,2519.3,3.2078]
[1749222060657,0.79326,2519.2,2519.1,1.44438]
[1749222061053,0.79326,2519.2,2519.1,0.6511]
[1749222063454,0.7932,2519.4,2519.1,0.6511]
[1749222063657,29.7456525,2519.7,2519.3,3.2078]
[1749222063959,0.7932,2519.4,2519.3,3.2078]
[1749222064158,0.79323,2519.3,2519.2,1.3236]
[1749222064860,0.79323,2519.3,2519.2,2.11686]
[1749222065055,0.79323,2519.3,2519.2,1.3236]
[1749222065461,1.98296,2519.5,2519.1,0.6511]
[1749222065462,0.79326,2519.2,2519.1,0.6511]
[1749222066464,0.79326,2519.2,2519.1,1.44439]
[1749222066761,0.79326,2519.2,2519.1,2.0174]
[1749222067063,0.79326,2519.2,2519.1,0.6511]
[1749222067457,1.98304,2519.4,2519.0,3.2078]
[1749222067458,0.79329,2519.1,2519.0,3.2078]
[1749222067860,0.79329,2519.1,2519.0,4.00112]
[1749222068364,0.79329,2519.1,2519.0,3.2078]
[1749222068566,0.79329,2519.1,2519.0,4.00112]
[1749222068763,0.79322,2519.5,2519.4,0.7932]
[1749222069068,0.79326,2519.3,2519.2,0.79323]
[1749222070165,5.089,2519.6,2519.3,1.98304]
[1749222070366,0.7990525,2519.7,2519.6,0.79314]
[1749222070563,0.79314,2519.6,2519.5,4.00094]
[1749222070763,0.79314,2519.6,2519.5,5.29814]
[1749222071769,0.79314,2519.6,2519.5,3.2078]
[1749222072570,1.71347993,2519.6,2519.5,3.2078]
[1749222072777,1.71347993,2519.6,2519.5,4.00097]
[1749222072969,1.71347993,2519.6,2519.5,3.2078]
[1749222074574,1.71347993,2519.6,2519.5,4.00097]
[1749222074771,0.92033993,2519.6,2519.5,4.00097]
[1749222075073,0.92033993,2519.6,2519.5,5.31527]
[1749222075263,0.0059525,2519.7,2519.6,0.79314]
[1749222075572,1.98231,2520.3,2519.6,1.98282]
[1749222075771,0.79298,2520.1,2520.0,3.2078]
[1749222075974,1.71271708,2520.1,2520.0,3.2078]
[1749222076866,0.79308,2519.8,2519.7,1.9423]
[1749222077075,0.79311,2519.7,2519.6,3.2078]
[1749222077373,0.79314,2519.6,2519.5,0.628]
[1749222077874,1.7131745,2519.6,2519.5,0.628]
[1749222078076,0.6399,2519.8,2519.5,0.628]
[1749222078373,0.79314,2519.6,2519.5,1.42115]
[1749222078574,0.79314,2519.6,2519.5,2.77955]
[1749222078873,5.7635,2519.9,2519.5,1.9864]
[1749222079075,1.71677151,2519.8,2519.7,0.79309]
[1749222079374,0.6399,2520.2,2519.6,3.2078]
[1749222079571,1.71652852,2520.1,2520.0,0.79298]
[1749222079874,0.79301,2520.0,2519.9,4.00082]
[1749222080175,0.79301,2520.0,2519.9,5.28604]
[1749222082070,0.79297,2520.2,2520.1,0.79295]
[1749222082271,0.0059525,2520.3,2520.2,0.79295]
[1749222082468,0.0059525,2520.3,2520.2,4.00075]
[1749222085077,0.0059525,2520.3,2519.9,3.2078]
[1749222085273,0.79301,2520.0,2519.9,3.2078]
[1749222085476,0.79308,2519.8,2519.7,0.79309]
[1749222085680,0.79311,2519.7,2519.6,6.00412]
[1749222085877,0.79311,2519.7,2519.6,3.2078]
[1749222086073,0.79317,2519.5,2519.2,3.2078]
[1749222087674,0.79317,2519.5,2519.2,4.00106]
[1749222087972,0.79317,2519.5,2519.2,3.2078]
[1749222088169,0.79317,2519.5,2519.4,0.7991525]
[1749222088375,0.6297,2519.6,2519.4,0.7991525]
[1749222088376,0.79315,2519.6,2519.5,0.79314]
[1749222088575,0.79317,2519.5,2519.4,0.7991425]
[1749222090580,0.79317,2519.5,2519.4,0.0059525]
[1749222091779,1.73518599,2519.5,2519.4,0.0059525]
[1749222092081,0.79345,2518.6,2518.5,3.2078]
[1749222092272,0.79358,2518.3,2518.2,3.2078]
[1749222092581,0.79367,2517.9,2517.8,4.5321]
[1749222092780,0.79367,2517.9,2517.7,0.31000158]
[1749222092781,0.79371,2517.8,2517.7,0.31000158]
[1749222093172,0.0059525,2518.0,2517.5,3.2078]
[1749222093378,0.79377,2517.6,2517.5,3.2078]
[1749222093687,0.79372,2517.8,2517.7,0.79373]
[1749222094089,0.0059525,2518.0,2517.5,5.19228]
[1749222094284,0.0059525,2518.0,2517.9,0.79367]
[1749222094786,0.0059525,2518.0,2517.9,2.76387]
[1749222095387,0.0059525,2518.0,2517.9,7.76387]
[1749222095588,0.0059525,2518.0,2517.9,1.9702]
[1749222095589,0.7995925,2518.0,2517.9,1.9702]
[1749222095881,0.0059525,2518.0,2517.5,3.2078]
[1749222096082,0.79377,2517.6,2517.5,3.2078]
[1749222096276,0.79374,2517.7,2517.6,0.79376]
[1749222096688,0.79377,2517.6,2517.5,3.2078]
[1749222097088,0.0059525,2518.0,2517.5,3.2078]
[1749222097280,0.79377,2517.6,2517.5,3.2078]
[1749222097481,0.79377,2517.6,2517.5,4.0016]
[1749222097788,0.79375,2517.7,2517.6,0.79374]
[1749222097976,0.79377,2517.6,2517.5,3.2078]
[1749222098788,5.076,2517.8,2517.7,0.79374]
[1749222099082,0.6544,2517.9,2517.5,3.2078]
[1749222099288,0.79377,2517.7,2517.6,0.79374]
[1749222099488,0.6544,2517.9,2517.5,3.2078]
[1749222099785,0.79377,2517.6,2517.5,3.2078]
[1749222100985,0.79377,2517.6,2517.5,4.0016]
[1749222101283,0.79377,2517.6,2517.5,4.00158]
[1749222101689,0.79377,2517.6,2517.5,3.2078]
[1749222102187,1.98487,2517.1,2516.8,3.2078]
[1749222102392,0.79399,2516.9,2516.8,3.2078]
[1749222103086,0.79399,2516.9,2516.8,4.0018]
[1749222103282,0.79398,2517.0,2516.8,3.2078]
[1749222103485,0.79399,2516.9,2516.8,3.2078]
[1749222104292,0.79399,2516.9,2516.8,4.00182]
[1749222104492,0.79397,2517.0,2516.8,3.2078]
[1749222104687,0.79397,2517.0,2516.8,4.00179]
[1749222104896,0.79397,2517.0,2516.9,0.79399]
[1749222105291,0.79396,2517.0,2516.9,0.79399]
[1749222105594,0.79395,2517.1,2517.0,0.79395]
[1749222105791,26.70262,2517.2,2517.1,0.79393]
[1749222106087,0.6872,2517.2,2517.1,0.79393]
[1749222106289,0.7937,2517.9,2517.3,1.98467]
[1749222106490,0.7937,2517.9,2517.8,0.79368]
[1749222106992,0.79373,2517.8,2517.7,0.79371]
[1749222107192,5.0839525,2518.0,2517.9,0.79368]
[1749222107193,5.8776125,2518.0,2517.9,0.79368]
[1749222107395,24.7006025,2518.0,2517.9,0.79368]
[1749222107787,0.0059525,2518.0,2517.9,4.00148]
[1749222108384,12.17903383,2519.0,2518.1,1.98403]
[1749222108585,12.17903383,2519.0,2518.5,0.79348]
[1749222108586,5.078,2518.6,2518.5,0.79348]
[1749222108790,5.87145,2518.6,2518.5,0.79348]
[1749222108997,5.078,2518.6,2518.5,0.79349]
[1749222109493,5.87145,2518.6,2518.5,0.79349]
[1749222109690,0.79349,2518.5,2518.4,4.00132]
[1749222109888,0.0059525,2518.8,2518.7,0.79342]
[1749222110089,0.7993425,2518.8,2518.7,0.79342]
[1749222110390,0.7993425,2518.8,2518.7,4.00122]
[1749222110391,0.0059525,2518.8,2518.7,4.00122]
[1749222111189,0.7993425,2518.8,2518.7,4.00122]
[1749222111390,0.0059525,2518.8,2518.7,4.00122]
[1749222113089,5.077,2519.5,2519.4,0.79321]
[1749222113289,5.077,2519.5,2519.0,1.9833]
[1749222113290,0.79324,2519.3,2519.2,3.2078]
[1749222113697,0.79335,2519.0,2518.9,0.79335]
[1749222114491,5.87032,2519.1,2519.0,0.79333]
[1749222114699,0.79334,2519.0,2518.9,0.79334]
[1749222115299,5.0819525,2519.2,2519.1,0.7933]
[1749222115496,5.0819525,2519.2,2519.0,0.79333]
[1749222115701,5.0819525,2519.2,2518.9,1.3605]
[1749222115702,5.0819525,2519.2,2518.8,3.2078]
[1749222115900,5.8752425,2519.2,2519.1,0.7933]
[1749222116103,0.79331,2519.1,2519.0,0.7933]
[1749222116500,5.8752425,2519.2,2519.1,0.7933]
[1749222117001,0.79335,2519.0,2518.9,0.79333]
[1749222117205,0.79332,2519.1,2519.0,0.79331]
[1749222118402,0.79336,2518.9,2518.8,4.00117]
[1749222119002,0.79333,2519.1,2519.0,0.7933]
[1749222120397,0.79336,2518.9,2518.8,3.2078]
[1749222120604,1.48233,2519.0,2518.9,0.79336]
[1749222120804,0.79336,2518.9,2518.8,3.2078]
[1749222121010,0.79336,2518.9,2518.8,4.00119]
[1749222121499,0.79332,2519.1,2518.8,5.19128]
[1749222121808,0.0059525,2519.2,2519.1,0.7933]
[1749222123014,0.0059525,2519.2,2519.1,4.0011]
[1749222123305,0.7992225,2519.2,2519.1,3.2078]
[1749222123704,0.79341,2518.9,2518.8,4.00118]
[1749222123900,0.0059525,2519.2,2519.0,0.7933]
[1749222124206,0.0059525,2519.2,2519.1,0.7933]
[1749222124402,0.0059525,2519.2,2519.1,4.0011]
[1749222124804,1.98326,2519.1,2518.8,3.2078]
[1749222125106,0.79336,2518.9,2518.8,3.2078]
[1749222125910,1.98361,2518.7,2518.3,0.0059525]
[1749222126111,0.79352,2518.4,2518.3,0.0059525]
[1749222126409,0.79352,2518.4,2518.3,0.7995025]
[1749222127004,3.2078,2518.8,2518.3,0.0059525]
[1749222127005,38.1078,2518.8,2518.3,0.0059525]
[1749222127204,5.068,2518.7,2518.6,0.79344]
[1749222127512,5.86143,2518.7,2518.6,0.79344]
[1749222127712,5.068,2518.7,2518.3,3.2137525]
[1749222127913,0.79352,2518.4,2518.3,3.2137525]
[1749222128207,0.79352,2518.4,2518.3,0.0059525]
[1749222128405,3.2078,2518.8,2518.3,0.0059525]
[1749222128608,0.79343,2518.7,2518.6,0.79346]
[1749222128809,8.2758,2518.8,2518.6,0.79344]
[1749222129015,0.79346,2518.7,2518.6,0.79344]
[1749222129311,0.7935,2518.5,2518.4,0.79352]
[1749222130013,7.05152,2518.8,2518.3,3.2137525]
[1749222130014,0.79352,2518.4,2518.3,3.2137525]
[1749222130213,0.79351,2518.5,2518.3,3.2137525]
[1749222130416,0.79352,2518.4,2518.3,4.0072925]
[1749222130616,0.79347,2518.6,2518.3,3.2137525]
[1749222130811,0.79347,2518.6,2518.5,0.79345]
[1749222132012,0.79352,2518.5,2518.3,3.2137525]
[1749222132211,0.79352,2518.5,2518.4,0.79351]
[1749222132417,0.79347,2518.6,2518.5,0.79345]
[1749222132916,0.79352,2518.5,2518.4,0.7935]
[1749222133118,0.79352,2518.4,2518.3,3.2137525]
[1749222134115,0.79352,2518.4,2518.3,0.0059525]
[1749222134619,1.74457627,2518.4,2518.3,0.0059525]
[1749222134814,3.72397627,2518.4,2518.3,0.0059525]
[1749222135016,0.79371,2517.8,2517.7,2.12101]
[1749222135219,0.79368,2518.0,2517.9,0.79366]
[1749222135720,0.79371,2517.9,2517.8,0.7937]
[1749222136020,0.79371,2517.8,2517.7,0.79372]
[1749222136518,0.7937,2517.9,2517.8,0.79368]
[1749222138016,0.79374,2517.7,2517.6,4.0074925]
[1749222139022,0.79373,2517.8,2517.7,0.79371]
[1749222139220,0.0059525,2517.9,2517.6,3.2137525]
[1749222139221,0.0059525,2517.9,2517.8,0.79371]
[1749222139615,0.0059525,2517.9,2517.8,5.79371]
[1749222139616,2.5e-06,2517.9,2517.8,5.79371]
[1749222142022,2.5e-06,2517.9,2517.8,0.79371]
[1749222142217,2.5e-06,2517.9,2517.6,5.1981825]
[1749222142218,2.5e-06,2517.9,2517.6,3.2137525]
[1749222142422,0.7937025,2517.9,2517.8,0.79371]
[1749222142726,2.5e-06,2517.9,2517.8,0.79371]
[1749222144229,0.7937225,2517.9,2517.8,0.79371]
[1749222144726,0.79374,2517.8,2517.7,0.79372]
[1749222145618,0.79374,2517.7,2517.6,4.0075125]
[1749222145924,0.7937325,2517.9,2517.8,0.79371]
[1749222146723,0.7937325,2517.9,2517.6,5.1981925]
[1749222146724,0.79374,2517.8,2517.7,0.79372]
[1749222147018,0.79374,2517.7,2517.6,3.2137525]
[1749222147420,0.79374,2517.7,2517.6,0.0059525]
[1749222147626,1.7376466,2517.7,2517.6,0.0059525]
[1749222148017,0.79374,2517.7,2517.6,0.0059525]
[1749222148219,5.86274,2517.7,2517.6,0.7997225]
[1749222148626,0.79374,2517.7,2517.6,0.0059525]
[1749222148823,5.063,2517.8,2517.6,0.0059525]
[1749222149032,19.5987225,2517.9,2517.8,0.79371]
[1749222149218,0.94379243,2517.9,2517.8,0.79371]
[1749222149528,0.7936825,2517.9,2517.8,0.79371]
[1749222150326,0.79371,2517.8,2517.6,0.0059525]
[1749222150515,0.79371,2517.8,2517.7,0.79374]
[1749222150934,0.79374,2517.7,2517.6,0.7997125]
[1749222151133,2.09082,2517.8,2517.7,0.79374]
[1749222151332,0.79372,2517.8,2517.7,0.79374]
[1749222152321,0.79374,2517.7,2517.6,0.0059525]
[1749222152835,6.73440746,2517.7,2517.6,0.0059525]
[1749222153333,0.79394,2517.2,2516.9,3.864]
[1749222153632,5.063,2517.4,2517.0,1.98489]
[1749222153933,2.133,2517.6,2517.5,0.7938]
[1749222154126,7.197,2517.6,2517.5,0.7938]
[1749222154322,0.79385,2517.5,2517.4,0.79382]
[1749222154528,0.79384,2517.4,2517.3,0.7998]
[1749222154729,0.79384,2517.4,2517.3,0.00595]
[1749222156029,0.79384,2517.4,2516.1,3.11798403]
[1749222156030,5.94027996,2517.4,2516.1,3.11798403]
[1749222156332,0.79417,2516.4,2516.3,0.79416]
[1749222156925,1.369,2516.7,2516.2,3.2078]
[1749222157121,0.0059525,2516.6,2516.5,4.00192]
[1749222157326,2.5e-06,2516.6,2516.5,4.00192]
[1749222157531,2.5e-06,2516.6,2516.5,9.00192]
[1749222158128,0.79382,2517.5,2517.4,0.79381]
[1749222158323,0.79382,2517.5,2517.4,3.2078]
[1749222158531,9.0338,2517.8,2517.7,0.79374]